bitfinex/quotes_ETHUSD_20241204
["timestamp","ask_amount","ask_price","bid_price","bid_amount"]
[1733307623048,0.92402862,3735.9,3735.0,0.3673]
[1733307623266,1.11387925,3736.1,3735.0,0.3673]
[1733307623560,1.11387925,3736.3,3735.1,0.55]
[1733307623767,1.11387925,3736.4,3735.1,0.55]
[1733307623933,0.92426934,3736.3,3735.1,0.55]
[1733307624263,0.924552,3736.2,3735.1,0.8173]
[1733307624426,1.11387925,3736.6,3735.1,0.8173]
[1733307624768,0.92452961,3736.5,3735.1,0.8173]
[1733307624972,1.11387925,3736.7,3735.1,0.8173]
[1733307625118,0.92452067,3736.6,3735.1,0.8173]
[1733307625324,0.92480439,3736.5,3735.1,0.8173]
[1733307625520,0.924821,3736.4,3735.1,0.8173]
[1733307625739,1.11387925,3736.6,3735.1,0.8173]
[1733307626021,3.4260966,3736.5,3735.1,0.8173]
[1733307626242,2.31283031,3736.4,3735.2,0.02676349]
[1733307626443,1.11387925,3736.5,3735.2,0.02676349]
[1733307626656,0.92533916,3736.4,3735.2,0.02676349]
[1733307626844,1.11387925,3736.6,3735.2,0.02676349]
[1733307627058,2.31325028,3736.5,3735.4,0.55]
[1733307627369,1.11387925,3736.6,3735.4,0.57676235]
[1733307627553,1.11387925,3736.7,3735.6,0.55]
[1733307627735,0.9257227,3736.6,3735.6,0.55]
[1733307628093,1.11387925,3736.7,3735.6,0.55]
[1733307628367,2.31447838,3736.6,3735.3,0.8015583]
[1733307628587,1.11387925,3736.7,3735.3,0.8015583]
[1733307628783,1.6269,3736.8,3735.3,0.8015583]
[1733307628784,1.11387925,3736.4,3735.3,0.8015583]
[1733307629084,3.844008,3736.8,3735.3,0.8015583]
[1733307629085,1.11387925,3736.5,3735.3,0.8015583]
[1733307629380,2.31516316,3736.4,3735.1,0.2673]
[1733307629566,1.11387925,3736.5,3735.2,1.09583234]
[1733307629770,2.31552815,3736.4,3735.3,0.14631323]
[1733307629937,0.9262062,3736.3,3735.3,0.14631323]
[1733307630144,0.9262062,3736.2,3735.4,0.57676385]
[1733307630452,2.89608224,3736.9,3735.6,0.2676]
[1733307630453,1.11387925,3736.6,3735.6,0.2676]
[1733307630642,0.92652908,3736.5,3735.7,0.55]
[1733307630842,1.11387925,3736.8,3735.7,0.55]
[1733307631038,0.92647946,3736.7,3735.7,0.55]
[1733307631237,1.11387925,3736.9,3735.7,0.55]
[1733307631472,1.11387925,3736.9,3735.6,0.2676]
[1733307631473,0.92686239,3736.8,3735.6,0.2676]
[1733307631679,1.11387925,3736.9,3735.7,0.55]
[1733307631879,1.66466835,3737.1,3735.7,0.55]
[1733307631880,0.92685924,3736.8,3735.7,0.55]
[1733307632086,1.11387925,3737.0,3735.7,0.55]
[1733307632240,3.43102812,3736.9,3735.7,0.55]
[1733307632440,0.92685955,3736.8,3735.6,0.8176]
[1733307632681,1.11387925,3737.0,3735.6,0.8176]
[1733307632884,2.31748267,3736.9,3735.6,0.8176]
[1733307633070,1.66466835,3737.1,3735.6,0.8176]
[1733307633071,1.11387925,3737.1,3735.6,0.8176]
[1733307633391,3.43134798,3737.0,3735.6,0.8176]
[1733307633679,2.31746873,3736.9,3735.9,0.55]
[1733307633893,1.11387925,3737.0,3736.1,0.55]
[1733307634037,0.92705186,3736.9,3736.1,0.55]
[1733307634239,1.11387925,3737.1,3736.1,0.55]
[1733307634436,2.31771638,3737.0,3736.1,0.55]
[1733307634722,1.11387925,3737.2,3736.1,0.55]
[1733307634985,2.31756643,3737.1,3736.1,0.55]
[1733307635143,0.92702657,3737.0,3736.1,0.55]
[1733307635345,1.11387925,3737.1,3736.1,0.55]
[1733307635571,0.92711135,3737.0,3736.1,0.55]
[1733307635771,1.11387925,3737.1,3736.1,0.55]
[1733307636043,0.92705814,3737.0,3736.2,0.2676]
[1733307636245,1.11387925,3737.1,3736.2,0.2676]
[1733307636471,0.92710694,3737.0,3736.2,0.2676]
[1733307636786,1.11387925,3737.1,3736.2,0.2676]
[1733307636943,3.71936635,3737.0,3735.9,0.2676]
[1733307637138,0.92705299,3736.9,3735.9,0.2676]
[1733307637343,1.11387925,3737.0,3735.9,0.2676]
[1733307637581,0.92711047,3736.9,3735.9,0.2676]
[1733307637783,1.11387925,3737.2,3736.0,0.02676135]
[1733307637980,2.3176149,3737.1,3736.0,0.57676135]
[1733307638290,2.3176149,3737.0,3736.1,0.13839813]
[1733307638578,0.92704596,3736.9,3736.1,0.13839813]
[1733307638778,1.11387925,3737.1,3736.1,0.13839813]
[1733307638979,2.3176301,3737.0,3736.1,0.13839813]
[1733307639177,1.11387925,3737.2,3736.1,0.13839813]
[1733307639385,0.92699917,3737.1,3736.1,0.13839813]
[1733307639589,1.11387925,3737.2,3736.1,0.13839813]
[1733307639826,0.92692941,3737.1,3736.1,0.13839813]
[1733307640019,1.11387925,3737.2,3736.1,0.13839813]
[1733307640328,0.92692491,3737.1,3736.1,0.13839813]
[1733307640523,1.11387925,3737.3,3736.1,0.13839813]
[1733307640674,2.3170501,3737.2,3736.1,0.13839813]
[1733307640874,0.92682232,3737.1,3736.1,0.13839813]
[1733307641190,1.62344481,3737.3,3736.1,0.13839813]
[1733307641385,3.43089202,3737.2,3736.1,0.13839813]
[1733307641696,1.5805,3737.0,3735.9,0.2676]
[1733307641898,0.92683786,3736.9,3735.9,0.2676]
[1733307642102,0.92683786,3736.9,3734.3,0.02675956]
[1733307642103,0.92684539,3736.8,3735.6,0.2676]
[1733307642291,0.1,3736.6,3735.6,0.2676]
[1733307642495,0.21407246,3736.5,3735.6,0.2676]
[1733307643229,0.21407246,3736.5,3735.1,0.2676]
[1733307643531,0.21407246,3736.5,3735.3,0.2676]
[1733307643718,1.11387925,3736.7,3735.3,0.2676]
[1733307643900,0.92694756,3736.6,3735.5,0.2676]
[1733307644100,1.11387925,3736.8,3735.5,0.2676]
[1733307644287,2.31734598,3736.7,3735.5,0.2676]
[1733307644476,1.11387925,3736.8,3735.6,0.55]
[1733307644678,1.11387925,3737.2,3735.7,0.16541597]
[1733307644887,1.11387925,3737.3,3735.7,0.43301597]
[1733307645087,0.9267921,3737.2,3735.7,0.43301597]
[1733307645432,1.11387925,3737.3,3735.7,0.43301597]
[1733307645433,0.92677802,3737.1,3735.7,0.43301597]
[1733307645635,0.1,3737.2,3735.7,0.43301597]
[1733307645817,0.92675132,3737.1,3735.7,0.43301597]
[1733307645984,1.21387925,3737.2,3735.7,0.43301597]
[1733307646190,0.92671719,3737.1,3735.9,0.2676]
[1733307646417,1.11387925,3736.9,3735.9,0.2676]
[1733307646599,3.43078956,3736.8,3735.9,0.2676]
[1733307646903,0.92685456,3736.7,3735.9,0.2676]
[1733307647103,1.11387925,3736.8,3735.9,0.42981972]
[1733307647346,2.317108,3737.1,3735.9,0.42981972]
[1733307647347,1.21387925,3737.1,3735.9,0.45658125]
[1733307647543,2.31702751,3737.0,3735.9,0.45658125]
[1733307647744,1.21387925,3737.1,3735.9,0.45658125]
[1733307647965,2.31700167,3737.0,3735.9,0.45658125]
[1733307648145,1.21387925,3737.1,3735.9,0.45658125]
[1733307648350,0.1,3737.1,3735.9,0.45658125]
[1733307648656,0.1,3737.1,3735.9,0.42981972]
[1733307648859,0.38785476,3737.1,3735.9,0.42981972]
[1733307649079,0.1,3736.6,3735.4,0.54217883]
[1733307649378,0.1,3736.4,3735.0,0.1]
[1733307650030,0.1,3736.4,3735.0,0.3676]
[1733307650350,0.1,3736.1,3735.0,0.3676]
[1733307650554,2.31734371,3736.0,3735.0,0.3676]
[1733307650753,0.92691201,3735.9,3735.0,0.3676]
[1733307650963,2.79077925,3736.1,3735.0,0.3676]
[1733307651173,2.31728403,3736.0,3735.0,0.3676]
[1733307651375,0.92691361,3735.9,3735.0,0.3676]
[1733307651694,2.3172213,3735.8,3735.0,0.1]
[1733307651992,1.11387925,3735.9,3735.0,0.1]
[1733307652193,2.31721183,3735.8,3735.0,0.1]
[1733307652392,0.92688473,3735.7,3735.0,0.1]
[1733307652547,0.92688473,3735.6,3735.0,0.1]
[1733307652747,0.48054323,3735.6,3735.0,0.1]
[1733307652948,0.1,3735.3,3735.0,0.1]
[1733307653849,2.31674512,3735.2,3735.0,0.1]
[1733307654043,0.92671088,3735.1,3735.0,0.1]
[1733307654248,0.1,3735.1,3735.0,0.1]
[1733307654459,2.41680573,3735.1,3735.0,0.1]
[1733307654660,0.61953533,3735.1,3735.0,0.1]
[1733307654848,1.02638254,3735.1,3735.0,0.1]
[1733307655060,0.1,3734.7,3734.0,0.1594636]
[1733307655698,0.1,3734.5,3734.0,0.1594636]
[1733307655848,1.5494,3734.4,3734.0,0.1594636]
[1733307656046,1.6494,3734.4,3734.0,0.1594636]
[1733307656292,1.66466835,3734.8,3734.0,0.1594636]
[1733307656293,0.1,3734.2,3734.0,0.1594636]
[1733307656475,2.42900644,3734.1,3734.0,0.1594636]
[1733307656647,1.5028,3734.1,3734.0,0.1594636]
[1733307656992,0.1,3733.5,3731.4,0.0267865]
[1733307657174,0.1,3733.2,3732.1,0.53817039]
[1733307657373,1.5028,3733.4,3731.4,1.01251845]
[1733307657681,0.1,3733.7,3732.1,0.30705425]
[1733307657882,0.1,3733.7,3731.9,0.02678686]
[1733307658109,0.1,3733.7,3731.8,0.53211691]
[1733307658110,0.1,3733.5,3731.8,0.53211691]
[1733307658446,0.1,3733.3,3731.8,0.53211691]
[1733307659087,0.1,3733.3,3731.9,0.02679011]
[1733307659264,0.1,3733.3,3731.8,0.53211691]
[1733307659468,0.1,3733.3,3731.9,0.02678925]
[1733307659868,0.1,3733.6,3731.9,0.57678926]
[1733307660367,0.1,3733.6,3731.9,0.55]
[1733307660568,0.1,3733.4,3732.0,0.02678834]
[1733307660755,0.1,3733.7,3732.1,0.02678742]
[1733307660954,0.1,3733.7,3732.1,0.20354614]
[1733307661210,0.1,3733.7,3732.1,0.17675872]
[1733307661414,0.1,3733.7,3732.2,0.55]
[1733307661909,0.1,3734.5,3732.3,0.02678573]
[1733307662070,1.1204287,3734.8,3732.3,0.02678573]
[1733307662071,0.1,3734.8,3732.5,0.55]
[1733307662254,0.1,3734.8,3732.6,0.2547347]
[1733307662454,0.1,3734.8,3732.7,0.55]
[1733307662656,0.1,3734.8,3732.9,0.55]
[1733307663163,0.1,3735.0,3733.0,0.02677807]
[1733307663360,1.5781,3735.2,3733.0,0.02677807]
[1733307663361,0.1,3734.8,3733.0,0.02677807]
[1733307663596,0.1,3735.0,3733.4,0.54634967]
[1733307663859,0.1,3734.6,3733.4,0.54634967]
[1733307664895,0.1,3734.8,3733.4,0.54634967]
[1733307665257,1.5781,3735.2,3733.4,0.54634967]
[1733307665258,0.1,3734.6,3733.4,0.54634967]
[1733307665463,0.1,3734.6,3732.9,0.55]
[1733307665661,0.1,3734.2,3731.9,5.47]
[1733307665970,0.1,3734.2,3732.2,0.78981448]
[1733307666191,0.1,3734.8,3732.3,0.02677999]
[1733307666390,0.1,3734.5,3733.0,0.80489119]
[1733307666721,0.1,3734.7,3733.0,0.80489119]
[1733307666875,0.1,3734.9,3733.1,0.55]
[1733307667075,0.1,3734.9,3733.3,0.55]
[1733307667333,0.1,3734.9,3733.5,0.55]
[1733307667475,0.1,3734.9,3733.3,0.55]
[1733307667680,0.25781,3735.1,3733.3,0.55]
[1733307667912,0.25781,3735.1,3733.7,0.54185555]
[1733307668209,0.189451,3735.0,3733.7,0.54185555]
[1733307668617,0.1,3735.1,3733.7,0.54185555]
[1733307668924,1.5731,3736.2,3733.8,0.57677639]
[1733307669071,0.1,3735.5,3734.0,0.55]
[1733307669386,0.1,3735.5,3734.1,0.0267733]
[1733307669584,0.1,3735.7,3734.0,0.57677341]
[1733307669946,0.1,3736.1,3734.0,0.84437341]
[1733307670106,0.1,3735.9,3734.0,0.84437341]
[1733307670675,0.1,3735.9,3734.0,0.8176]
[1733307670875,0.1,3735.9,3734.0,0.55]
[1733307671119,0.1,3735.9,3733.8,0.57676984]
[1733307671817,0.1,3736.1,3733.8,0.57676984]
[1733307672023,0.1,3736.3,3734.0,0.55]
[1733307672178,0.1,3736.5,3734.1,0.22676758]
[1733307672385,0.1,3736.7,3734.2,0.55]
[1733307672678,0.1,3736.7,3735.0,0.55]
[1733307673700,0.1,3736.7,3735.1,0.02676388]
[1733307673889,0.1,3736.9,3735.1,0.02676388]
[1733307674316,0.1,3736.8,3735.1,0.02676388]
[1733307674775,0.1,3737.3,3735.1,0.02676388]
[1733307674983,0.1,3737.3,3735.6,0.55]
[1733307675290,0.1,3737.1,3735.7,0.02675931]
[1733307675502,0.1,3737.1,3735.6,0.55]
[1733307675821,0.1,3737.5,3735.7,0.02675921]
[1733307676029,0.1,3738.0,3735.6,0.55]
[1733307676331,0.1,3737.8,3735.8,0.57675919]
[1733307676680,0.1,3738.2,3735.8,0.77675919]
[1733307676929,0.1,3738.2,3735.8,1.11012449]
[1733307677238,0.1,3738.2,3736.6,0.52723201]
[1733307677529,0.1,3738.0,3736.6,0.52723201]
[1733307678317,0.1,3738.0,3736.7,0.02675503]
[1733307678621,0.1,3738.0,3736.6,0.52723201]
[1733307678839,0.1,3738.0,3736.7,0.55]
[1733307679134,0.1,3737.4,3736.6,0.52723201]
[1733307679346,0.1,3737.0,3735.5,0.66426251]
[1733307680005,0.1,3737.0,3735.3,0.0267577]
[1733307680213,0.1,3737.0,3736.0,0.5221953]
[1733307680595,0.1,3737.0,3736.1,0.55]
[1733307680945,0.1,3736.6,3734.4,0.02675931]
[1733307681253,0.1,3736.6,3734.5,0.14574065]
[1733307681435,0.1,3736.6,3735.2,0.52208824]
[1733307681616,0.1,3736.1,3735.2,0.52208824]
[1733307682031,0.1,3736.6,3735.2,0.52208824]
[1733307682202,0.1,3736.5,3735.2,0.52208824]
[1733307682700,0.1,3736.2,3735.2,0.52208824]
[1733307683100,0.1,3736.2,3734.5,0.14574065]
[1733307683414,0.1,3736.2,3734.6,0.0267686]
[1733307683814,0.1,3736.0,3734.2,1.20267721]
[1733307684344,0.1,3736.0,3734.3,0.02676947]
[1733307684545,0.1,3736.0,3734.8,0.527709]
[1733307684729,0.1,3736.0,3734.9,0.02676785]
[1733307685201,1.6788,3736.6,3734.3,0.02676536]
[1733307685399,1.6788,3736.6,3734.4,0.14294426]
[1733307685596,1.6788,3736.6,3734.5,0.57676534]
[1733307685843,1.6788,3736.6,3735.5,0.55]
[1733307686043,1.6788,3736.6,3734.6,0.55]
[1733307686044,0.1,3736.0,3734.6,0.55]
[1733307686206,0.1,3736.0,3735.0,0.54335163]
[1733307686413,1.11530319,3737.2,3734.4,0.14294426]
[1733307686414,0.1,3735.6,3734.4,0.14294426]
[1733307686648,0.1,3735.0,3734.4,0.14294426]
[1733307686809,0.1,3735.0,3733.2,0.02677604]
[1733307687009,0.1,3735.3,3733.2,0.02677604]
[1733307687235,1.5591,3735.9,3733.2,0.02677604]
[1733307687236,0.1,3735.5,3734.1,0.532265]
[1733307687757,0.1,3735.5,3734.2,0.02677456]
[1733307688058,0.1,3735.5,3734.2,0.57677456]
[1733307688438,0.1,3735.7,3734.3,0.57677268]
[1733307688605,0.1,3735.7,3734.2,0.8176]
[1733307688606,0.1,3735.7,3734.5,0.55]
[1733307689462,1.5591,3735.9,3734.5,0.55]
[1733307689463,0.1,3735.6,3734.5,0.55]
[1733307689668,0.1,3734.8,3733.8,0.2676]
[1733307689866,1.5294,3735.1,3733.8,0.2676]
[1733307690171,0.1,3735.0,3733.8,0.2676]
[1733307690866,0.1,3734.8,3733.8,0.41784777]
[1733307691049,0.1,3734.8,3733.9,0.55]
[1733307692492,0.1,3735.0,3733.9,0.55]
[1733307692919,1.5294,3735.1,3733.9,0.55]
[1733307693364,0.1,3735.4,3734.0,0.0267765]
[1733307693573,0.1,3735.4,3734.1,0.02677464]
[1733307693771,1.6399,3735.5,3734.1,0.02677464]
[1733307693924,1.7399,3735.5,3734.1,0.02677464]
[1733307694727,0.1,3735.2,3733.9,0.55]
[1733307694925,1.7399,3735.5,3734.0,0.02677465]
[1733307695575,0.1,3735.2,3733.9,0.55]
[1733307695737,1.6399,3735.5,3734.0,0.02677396]
[1733307696284,1.6399,3735.5,3733.9,0.55]
[1733307696437,1.6399,3735.5,3734.1,0.02677145]
[1733307696767,1.6399,3735.5,3733.9,0.55]
[1733307697382,1.6399,3735.5,3734.0,0.02677147]
[1733307697542,0.1,3736.0,3734.0,0.02677147]
[1733307697958,0.1,3736.0,3734.2,0.55]
[1733307698838,0.1,3736.0,3734.6,0.55]
[1733307699854,0.1,3735.5,3734.6,0.55]
[1733307700885,1.6876,3735.3,3734.1,0.19530586]
[1733307701091,1.6876,3735.3,3734.4,0.2676]
[1733307701749,0.1,3735.2,3734.4,0.2676]
[1733307701944,0.1,3735.2,3733.9,0.2676]
[1733307702152,0.1,3735.2,3734.0,0.02677419]
[1733307702349,0.1,3735.2,3734.1,0.2676]
[1733307702588,0.1,3735.2,3734.3,0.2676]
[1733307702793,1.6817,3735.5,3734.3,0.2676]
[1733307702992,0.1,3735.3,3734.3,0.2676]
[1733307703164,0.26817,3735.3,3734.3,0.2676]
[1733307703510,0.26817,3735.3,3734.1,0.2676]
[1733307703805,0.1,3735.3,3734.3,0.2676]
[1733307704168,0.1,3735.1,3734.3,0.2676]
[1733307704608,0.1,3735.1,3734.1,0.2676]
[1733307705605,0.1,3735.1,3733.9,0.2676]
[1733307707073,1.5925,3735.0,3733.9,0.2676]
[1733307707273,1.76175,3735.0,3733.9,0.2676]
[1733307708801,0.09204115,3734.7,3733.9,0.2676]
[1733307709973,0.09204115,3735.1,3734.0,0.84437848]
[1733307710170,1.6184,3735.4,3734.0,0.8176]
[1733307710522,0.09204115,3735.1,3734.0,0.8176]
[1733307711071,0.09204115,3735.1,3733.8,0.15024777]
[1733307711688,0.09204115,3735.1,3733.8,0.81884198]
[1733307711989,1.6184,3735.4,3734.0,0.55]
[1733307712190,0.09204115,3735.1,3734.0,0.55]
[1733307712398,1.6184,3735.4,3734.0,0.55]
[1733307713275,1.6184,3735.4,3734.5,0.55]
[1733307714687,0.09204115,3735.1,3733.9,0.40491566]
[1733307715065,0.09204115,3735.1,3733.9,0.2676]
[1733307715902,0.09204115,3735.1,3734.0,0.55]
[1733307716087,0.09204115,3735.1,3734.2,0.54123552]
[1733307717227,1.6184,3735.4,3734.2,0.54123552]
[1733307717428,0.09204115,3735.1,3734.2,0.54123552]
[1733307717743,0.09204115,3735.1,3734.3,0.13588355]
[1733307718026,1.6184,3735.4,3734.3,0.13588355]
[1733307718429,0.09204115,3735.1,3734.3,0.13588355]
[1733307719303,1.6184,3735.4,3734.3,0.13588355]
[1733307719522,1.6184,3735.4,3734.4,0.55]
[1733307719733,0.09204115,3735.7,3734.4,0.55]
[1733307721141,1.6279,3735.8,3734.4,0.55]
[1733307721325,0.09204115,3735.6,3734.4,0.55]
[1733307724539,1.71994115,3735.8,3734.4,0.55]
[1733307724704,0.09204115,3735.6,3734.4,0.55]
[1733307727944,1.11614811,3735.2,3734.4,0.55]
[1733307728151,0.92722341,3735.1,3734.4,0.55]
[1733307728319,0.09204115,3735.6,3734.4,0.55]
[1733307729214,0.09204115,3735.6,3734.6,0.54218076]
[1733307730221,0.54307229,3735.6,3734.6,0.54218076]
[1733307730619,0.09204115,3735.3,3734.4,0.55]
[1733307731550,0.09204115,3735.6,3734.4,0.55]
[1733307732049,0.92797254,3735.5,3734.4,0.55]
[1733307732206,0.92811757,3735.4,3734.4,0.55]
[1733307732402,0.09204115,3735.3,3734.4,0.55]
[1733307733149,0.09204115,3735.3,3734.3,0.65878912]
[1733307733355,1.20818926,3735.6,3734.4,0.55]
[1733307733521,0.09204115,3735.3,3734.3,0.65878912]
[1733307733722,0.09204115,3735.1,3734.3,0.65878912]
[1733307735170,0.09204115,3735.1,3733.0,0.95814248]
[1733307735171,0.09204115,3734.7,3733.1,0.2676]
[1733307736147,0.09204115,3734.7,3732.6,0.02677811]
[1733307736148,2.32088506,3734.6,3732.6,0.29437811]
[1733307736343,0.92844688,3734.5,3732.6,0.29437811]
[1733307736674,1.20818926,3734.7,3733.0,0.2676]
[1733307736840,0.92826033,3734.6,3733.8,0.54079825]
[1733307737048,1.20818926,3734.7,3733.8,0.54079825]
[1733307737230,0.92825644,3734.6,3733.8,0.54079825]
[1733307737430,0.09204115,3734.7,3733.8,0.54079825]
[1733307738434,0.09204115,3734.7,3733.8,0.54079825]
[1733307739784,2.75514811,3735.1,3733.9,0.55]
[1733307739933,1.20818926,3735.2,3733.9,0.57677706]
[1733307740139,0.09204115,3735.2,3733.9,0.55]
[1733307740361,0.09204115,3735.1,3733.9,0.55]
[1733307741037,0.09204115,3735.1,3734.1,0.55]
[1733307741363,0.09204115,3735.1,3733.9,0.55]
[1733307741783,0.09204115,3735.1,3733.9,0.68583983]
[1733307741953,0.09204115,3734.8,3733.9,0.55]
[1733307742151,0.09204115,3734.5,3732.8,0.2676]
[1733307743053,0.09204115,3734.3,3732.8,0.2676]
[1733307743779,1.68994115,3734.3,3732.8,0.2676]
[1733307744179,0.09204115,3734.1,3732.8,0.2676]
[1733307744377,0.09204115,3734.1,3733.1,0.52957848]
[1733307744760,0.09204115,3734.1,3733.2,0.55]
[1733307745459,0.26103527,3734.1,3733.1,0.52957848]
[1733307745793,0.26103527,3734.1,3732.7,0.13945796]
[1733307745794,0.09204115,3733.6,3732.7,0.13945796]
[1733307746102,0.09204115,3733.4,3732.7,0.13945796]
[1733307747961,0.09204115,3733.2,3732.7,0.13945796]
[1733307748492,0.09204115,3733.2,3730.6,0.02679035]
[1733307748704,0.09204115,3733.2,3730.7,0.34399758]
[1733307748705,2.49633509,3733.1,3730.7,0.34399758]
[1733307749004,1.5702,3733.1,3731.2,0.0267936]
[1733307749160,1.5702,3733.1,3731.8,0.54610196]
[1733307750498,1.5702,3733.1,3731.8,0.49610196]
[1733307751058,1.5702,3733.1,3731.3,0.14720454]
[1733307751059,0.09204115,3732.4,3731.3,0.14720454]
[1733307751264,0.09204115,3732.7,3731.5,0.54304414]
[1733307751463,0.09204115,3732.5,3731.5,0.54304414]
[1733307753636,1.59204115,3732.2,3731.5,0.54304414]
[1733307753787,1.59204115,3732.2,3730.4,0.55]
[1733307754130,1.59204115,3732.2,3730.3,0.1594636]
[1733307754427,1.5703,3731.8,3730.9,0.52953505]
[1733307754586,1.5703,3731.8,3730.3,0.1594636]
[1733307755010,0.09204115,3731.9,3730.3,0.1594636]
[1733307755213,0.09204115,3731.9,3730.3,0.18626509]
[1733307755397,1.82154527,3732.1,3730.3,0.18626509]
[1733307755613,0.09204115,3731.9,3730.4,0.55]
[1733307756132,0.09204115,3731.7,3730.4,0.55]
[1733307756691,0.09204115,3731.7,3730.6,0.5299103]
[1733307758892,0.09204115,3731.7,3730.3,0.82956903]
[1733307759092,0.09204115,3731.5,3730.3,0.82956903]
[1733307759294,0.09204115,3731.5,3730.4,0.02680363]
[1733307759489,0.09204115,3731.8,3730.5,0.52707633]
[1733307759727,0.09204115,3731.8,3730.6,0.74066454]
[1733307760976,0.09204115,3732.3,3730.8,0.55]
[1733307761656,1.6114,3732.4,3730.8,0.55]
[1733307761991,0.09204115,3732.6,3731.1,0.2676]
[1733307762144,0.09204115,3732.6,3731.2,0.55]
[1733307763595,0.09204115,3732.6,3731.4,0.54718351]
[1733307763798,0.17584412,3732.5,3731.4,0.54718351]
[1733307765403,0.09204115,3732.6,3731.5,0.55]
[1733307765601,1.6664,3732.7,3731.5,0.8176]
[1733307765902,0.09204115,3732.8,3731.5,0.7676]
[1733307767107,0.09204115,3732.5,3731.5,0.7676]
[1733307767667,0.09204115,3732.7,3731.5,0.7676]
[1733307768067,0.09204115,3732.5,3731.5,0.7676]
[1733307768469,0.09204115,3732.7,3731.5,0.7676]
[1733307769503,0.09204115,3732.9,3731.5,0.7676]
[1733307769983,0.09204115,3732.6,3732.3,0.01039133]
[1733307770185,0.09204115,3732.6,3731.5,0.7676]
[1733307770400,0.09204115,3732.1,3731.4,0.54718351]
[1733307770703,0.09204115,3732.1,3731.2,0.66810338]
[1733307770883,0.09204115,3732.1,3731.1,0.2676]
[1733307771510,0.09204115,3732.1,3730.7,0.2676]
[1733307771714,0.09204115,3732.1,3731.1,0.2676]
[1733307771872,1.70084115,3732.5,3731.1,0.2676]
[1733307772074,1.87092527,3732.5,3731.1,0.2676]
[1733307773116,0.09204115,3732.3,3731.1,0.2676]
[1733307773340,0.09204115,3732.3,3731.3,0.54364986]
[1733307773503,1.87092527,3732.5,3731.3,0.54364986]
[1733307773810,0.09204115,3732.1,3731.3,0.54364986]
[1733307774020,0.09204115,3732.3,3731.3,0.54364986]
[1733307774379,0.09204115,3732.1,3731.3,0.54364986]
[1733307774822,0.09204115,3732.1,3731.1,0.2676]
[1733307775787,0.09204115,3732.1,3730.8,0.2676]
[1733307776527,1.5182,3732.0,3730.8,0.2676]
[1733307776678,1.67922412,3732.0,3730.8,0.2676]
[1733307776878,1.67922412,3732.0,3730.9,0.2676]
[1733307778013,0.09204115,3732.1,3730.9,0.2676]
[1733307778225,0.09204115,3732.1,3731.0,0.55]
[1733307778522,0.09204115,3732.4,3731.0,0.55]
[1733307778683,0.09204115,3732.1,3731.0,0.55]
[1733307779065,0.09204115,3732.1,3731.1,0.13657457]
[1733307781229,0.09204115,3732.3,3731.2,0.2676]
[1733307782028,0.09204115,3732.1,3731.2,0.2676]
[1733307782230,0.09204115,3732.3,3731.2,0.2676]
[1733307783552,0.09204115,3732.1,3731.2,0.2676]
[1733307783914,0.09204115,3732.5,3731.2,0.2676]
[1733307784351,0.09204115,3732.5,3731.2,0.29439506]
[1733307784656,0.09204115,3732.5,3731.2,0.2676]
[1733307785450,0.09204115,3732.7,3731.5,0.79121242]
[1733307785625,0.09204115,3732.5,3731.5,0.79121242]
[1733307785829,0.09204115,3732.7,3731.5,0.79121242]
[1733307786037,0.09204115,3733.1,3731.6,0.02679353]
[1733307787371,0.09204115,3733.1,3731.5,0.79121242]
[1733307787529,1.6621,3733.3,3731.7,0.2676]
[1733307787735,1.6621,3733.3,3731.9,0.2676]
[1733307787928,0.09204115,3733.6,3731.9,0.2676]
[1733307788272,0.09204115,3733.6,3732.0,0.02678892]
[1733307788431,0.09204115,3733.6,3731.9,0.2676]
[1733307789168,0.09204115,3733.9,3732.6,0.52438311]
[1733307789371,1.37718338,3734.1,3732.6,0.52438311]
[1733307789533,0.09204115,3733.6,3732.6,0.52438311]
[1733307789965,0.09204115,3733.9,3732.6,0.52438311]
[1733307790134,3.02958338,3734.1,3732.7,0.02678547]
[1733307790351,0.09204115,3733.9,3732.6,0.79198311]
[1733307790553,0.09204115,3734.1,3732.6,0.79198311]
[1733307790981,1.11614811,3734.6,3732.7,0.5767831]
[1733307791181,1.11614811,3734.8,3732.7,0.5767831]
[1733307791379,3.43040636,3734.7,3732.7,0.5767831]
[1733307791606,0.9257033,3734.6,3732.9,0.55]
[1733307791787,1.11614811,3734.9,3732.9,0.55]
[1733307791995,2.69414811,3735.0,3733.0,0.02678156]
[1733307792307,1.578,3735.0,3733.0,0.02678156]
[1733307792458,1.578,3735.0,3732.9,0.55]
[1733307792459,1.578,3735.0,3733.1,0.02677939]
[1733307792664,0.26941481,3735.0,3733.1,0.02677939]
[1733307793453,1.5947,3734.9,3733.2,0.02677954]
[1733307793692,1.5947,3734.9,3733.5,0.53392515]
[1733307793896,0.26941481,3735.0,3733.5,0.53392515]
[1733307800346,1.5947,3735.2,3733.5,0.53392515]
[1733307801037,0.28824114,3735.5,3733.6,0.02677989]
[1733307801239,0.54679081,3735.7,3733.5,0.53392515]
[1733307801535,1.5709,3735.6,3733.5,0.53392515]
[1733307802358,1.5709,3735.6,3733.6,0.55]
[1733307806661,1.5709,3735.6,3733.6,1.20850626]
[1733307806861,1.5709,3735.6,3733.6,0.55]
[1733307807062,0.55,3735.3,3733.6,0.55]
[1733307807269,0.55,3735.4,3733.5,0.53392515]
[1733307807419,1.505,3735.1,3733.0,0.68375358]
[1733307807619,1.505,3735.1,3733.1,0.55]
[1733307807813,1.505,3735.1,3732.1,0.34399758]
[1733307808046,1.5593,3734.9,3732.1,0.34399758]
[1733307808263,1.5593,3734.5,3732.2,0.55]
[1733307809321,1.5593,3734.5,3732.6,0.54218868]
[1733307810643,1.6234,3734.3,3732.6,0.54218868]
[1733307812526,1.6234,3734.3,3732.0,0.819962]
[1733307812720,1.6404,3734.0,3732.1,0.16399238]